[Event "*** Titled Tuesday Blitz"]
[Site "Chess.com"]
[Date "2020.05.19"]
[Round "8"]
[White "dosto07"]
[Black "Cambek64"]
[Result "0-1"]
[WhiteElo "2135"]
[BlackElo "2330"]
[TimeControl "180+1"]
[EndTime "13:35:30 PDT"]
[Termination "Cambek64 won by resignation"]

1. e4 {[%clk 0:03:00.9]} 1... e6 {[%clk 0:02:55.2]} 2. d4 {[%clk 0:02:59.9]}
2... d5 {[%clk 0:02:55.4]} 3. Nd2 {[%clk 0:03:00.3]} 3... Nc6 {[%clk 0:02:55.3]}
4. Ngf3 {[%clk 0:02:58]} 4... Nf6 {[%clk 0:02:54.4]} 5. e5 {[%clk 0:02:57.1]}
5... Nd7 {[%clk 0:02:54.6]} 6. Bb5 {[%clk 0:02:51.8]} 6... a6 {[%clk 0:02:50.5]}
7. Bxc6 {[%clk 0:02:50.9]} 7... bxc6 {[%clk 0:02:50.1]} 8. Nb3 {[%clk
0:02:48.3]} 8... c5 {[%clk 0:02:48.9]} 9. Bg5 {[%clk 0:02:29.6]} 9... Be7 {[%clk
0:02:46.8]} 10. Bxe7 {[%clk 0:02:07.2]} 10... Qxe7 {[%clk 0:02:41.2]} 11. dxc5
{[%clk 0:02:07.1]} 11... Nxc5 {[%clk 0:02:40.1]} 12. O-O {[%clk 0:02:07.2]}
12... a5 {[%clk 0:02:24.1]} 13. Re1 {[%clk 0:01:46.5]} 13... O-O {[%clk
0:02:09.4]} 14. Nxc5 {[%clk 0:01:37.2]} 14... Qxc5 {[%clk 0:02:08.9]} 15. Qd4
{[%clk 0:01:37.8]} 15... Qe7 {[%clk 0:02:08.8]} 16. a4 {[%clk 0:01:24.6]} 16...
c5 {[%clk 0:02:07.3]} 17. Qf4 {[%clk 0:01:24.5]} 17... h6 {[%clk 0:01:58.4]} 18.
h4 {[%clk 0:01:22.8]} 18... d4 {[%clk 0:01:55.4]} 19. h5 {[%clk 0:01:15.1]}
19... Bb7 {[%clk 0:01:55]} 20. Nh2 {[%clk 0:01:13.2]} 20... Bd5 {[%clk
0:01:33.6]} 21. Ra3 {[%clk 0:01:11.7]} 21... f5 {[%clk 0:01:25.7]} 22. exf6
{[%clk 0:01:04.8]} 22... Qxf6 {[%clk 0:01:20.1]} 23. Qxf6 {[%clk 0:00:58.2]}
23... Rxf6 {[%clk 0:01:20.2]} 24. Rg3 {[%clk 0:00:52.9]} 24... Kh7 {[%clk
0:01:12.4]} 25. Re5 {[%clk 0:00:46.6]} 25... Rf5 {[%clk 0:01:08]} 26. Rxf5
{[%clk 0:00:42]} 26... exf5 {[%clk 0:01:08.4]} 27. Rg6 {[%clk 0:00:42.3]} 27...
Rb8 {[%clk 0:01:07]} 28. b3 {[%clk 0:00:41.8]} 28... d3 {[%clk 0:01:05.7]} 29.
cxd3 {[%clk 0:00:39.3]} 29... Rxb3 {[%clk 0:01:03.7]} 30. Rd6 {[%clk 0:00:24.1]}
30... Rxd3 {[%clk 0:01:02.6]} 31. Nf3 {[%clk 0:00:22]} 31... Rd1+ {[%clk
0:01:01.8]} 32. Kh2 {[%clk 0:00:21.7]} 32... Bxf3 {[%clk 0:01:02.1]} 0-1

[Event "*** Titled Tuesday Blitz"]
[Site "Chess.com"]
[Date "2020.05.19"]
[Round "8"]
[White "zajka-molotok"]
[Black "chesslh19"]
[Result "1-0"]
[WhiteElo "2325"]
[BlackElo "2170"]
[TimeControl "180+1"]
[EndTime "13:35:30 PDT"]
[Termination "zajka-molotok won by resignation"]

1. e4 {[%clk 0:03:00.9]} 1... e5 {[%clk 0:02:03.9]} 2. Nf3 {[%clk 0:02:56.3]}
2... Nf6 {[%clk 0:02:03.9]} 3. Nxe5 {[%clk 0:02:52.5]} 3... d6 {[%clk
0:02:03.6]} 4. Nf3 {[%clk 0:02:52.1]} 4... Nxe4 {[%clk 0:02:03.9]} 5. Bd3 {[%clk
0:02:52.3]} 5... Nf6 {[%clk 0:02:02.9]} 6. O-O {[%clk 0:02:51.2]} 6... Be7
{[%clk 0:02:03.4]} 7. c3 {[%clk 0:02:50.2]} 7... O-O {[%clk 0:02:03.7]} 8. Bc2
{[%clk 0:02:50.5]} 8... d5 {[%clk 0:01:43.1]} 9. d4 {[%clk 0:02:50]} 9... Bg4
{[%clk 0:01:42.2]} 10. h3 {[%clk 0:02:49.2]} 10... Bh5 {[%clk 0:01:42.5]} 11.
Bf4 {[%clk 0:02:49]} 11... Nbd7 {[%clk 0:01:37.8]} 12. Nbd2 {[%clk 0:02:48.9]}
12... c6 {[%clk 0:01:35.2]} 13. Re1 {[%clk 0:02:45.6]} 13... Re8 {[%clk
0:01:29.5]} 14. Nf1 {[%clk 0:02:44.7]} 14... Bg6 {[%clk 0:01:22.5]} 15. Ng3
{[%clk 0:02:39.5]} 15... Nf8 {[%clk 0:01:17.8]} 16. Nf5 {[%clk 0:02:37.1]} 16...
Ne6 {[%clk 0:01:10.8]} 17. Bg3 {[%clk 0:02:31.7]} 17... Bf8 {[%clk 0:01:10.6]}
18. Ne5 {[%clk 0:02:29.3]} 18... Ne4 {[%clk 0:01:03]} 19. Bxe4 {[%clk
0:02:04.3]} 19... dxe4 {[%clk 0:01:03.2]} 20. Ne3 {[%clk 0:02:04.5]} 20... f5
{[%clk 0:00:52.4]} 21. Nxg6 {[%clk 0:02:00.8]} 21... hxg6 {[%clk 0:00:52]} 22.
Be5 {[%clk 0:02:00.9]} 22... Bd6 {[%clk 0:00:48.6]} 23. Nc4 {[%clk 0:01:58.3]}
23... Bxe5 {[%clk 0:00:44.1]} 24. Nxe5 {[%clk 0:01:58.5]} 24... Qf6 {[%clk
0:00:28.6]} 25. Qb3 {[%clk 0:01:53.1]} 25... Re7 {[%clk 0:00:20]} 26. f3 {[%clk
0:01:40.3]} 26... Kh7 {[%clk 0:00:15]} 27. fxe4 {[%clk 0:01:39.6]} 27... fxe4
{[%clk 0:00:09.9]} 28. Rxe4 {[%clk 0:01:38.5]} 28... Nf4 {[%clk 0:00:05.3]} 29.
Rf1 {[%clk 0:01:32.7]} 29... g5 {[%clk 0:00:04.8]} 30. Ng4 {[%clk 0:01:24.8]}
30... Qg6 {[%clk 0:00:03.4]} 31. Rxe7 {[%clk 0:01:23.9]} 31... Nxh3+ {[%clk
0:00:02.8]} 32. gxh3 {[%clk 0:01:23]} 32... Rb8 {[%clk 0:00:02.2]} 33. Ne5
{[%clk 0:01:21.7]} 33... Qh5 {[%clk 0:00:02.2]} 34. Qc2+ {[%clk 0:01:21.1]}
34... Kg8 {[%clk 0:00:01.7]} 35. Rff7 {[%clk 0:01:20]} 35... Qxh3 {[%clk
0:00:02.3]} 36. Rxg7+ {[%clk 0:01:19.8]} 36... Kf8 {[%clk 0:00:02.2]} 37. Qf2+
{[%clk 0:01:19.1]} 1-0

[Event "*** Titled Tuesday Blitz"]
[Site "Chess.com"]
[Date "2020.05.19"]
[Round "8"]
[White "davidkalashian"]
[Black "RaunakSadhwani2005"]
[Result "1/2-1/2"]
[WhiteElo "2621"]
[BlackElo "2798"]
[TimeControl "180+1"]
[EndTime "13:35:33 PDT"]
[Termination "Game drawn by repetition"]

1. e4 {[%clk 0:03:00.9]} 1... c6 {[%clk 0:02:58.9]} 2. d4 {[%clk 0:03:00.5]}
2... d5 {[%clk 0:02:59.8]} 3. Nc3 {[%clk 0:03:00.7]} 3... dxe4 {[%clk
0:02:59.9]} 4. Nxe4 {[%clk 0:03:01.6]} 4... Nf6 {[%clk 0:02:59.3]} 5. Nxf6+
{[%clk 0:03:01.8]} 5... exf6 {[%clk 0:03:00.2]} 6. c3 {[%clk 0:03:02.1]} 6...
Bd6 {[%clk 0:02:59.2]} 7. Bd3 {[%clk 0:03:02.6]} 7... O-O {[%clk 0:02:58]} 8.
Qc2 {[%clk 0:03:03.1]} 8... Re8+ {[%clk 0:02:58.2]} 9. Ne2 {[%clk 0:03:02.9]}
9... h5 {[%clk 0:02:58.6]} 10. Be3 {[%clk 0:03:02.5]} 10... h4 {[%clk
0:02:58.6]} 11. O-O-O {[%clk 0:03:00.6]} 11... Qa5 {[%clk 0:02:55.6]} 12. Kb1
{[%clk 0:02:57]} 12... Nd7 {[%clk 0:02:55.3]} 13. c4 {[%clk 0:02:54.7]} 13...
Nf8 {[%clk 0:02:54.2]} 14. Nc3 {[%clk 0:02:48.2]} 14... Be6 {[%clk 0:02:52.3]}
15. Rhe1 {[%clk 0:02:40.7]} 15... Rac8 {[%clk 0:02:46.2]} 16. Bd2 {[%clk
0:02:34.6]} 16... Qd8 {[%clk 0:02:39.8]} 17. Qc1 {[%clk 0:02:12.9]} 17... a6
{[%clk 0:02:34.2]} 18. Bf4 {[%clk 0:02:10.2]} 18... b5 {[%clk 0:02:34]} 19. Bxd6
{[%clk 0:02:05.6]} 19... Qxd6 {[%clk 0:02:34.9]} 20. c5 {[%clk 0:02:04.9]} 20...
Qd7 {[%clk 0:02:34.6]} 21. Ne4 {[%clk 0:01:59.3]} 21... Qd5 {[%clk 0:02:34.2]}
22. b3 {[%clk 0:01:51.5]} 22... Bf5 {[%clk 0:02:34.1]} 23. Qf4 {[%clk
0:01:40.3]} 23... Ng6 {[%clk 0:02:13.8]} 24. Nxf6+ {[%clk 0:01:36.5]} 24... gxf6
{[%clk 0:02:11.3]} 25. Qxf5 {[%clk 0:01:35.3]} 25... Qxd4 {[%clk 0:02:09.4]} 26.
Rxe8+ {[%clk 0:01:26.3]} 26... Rxe8 {[%clk 0:02:10.3]} 27. Bc2 {[%clk
0:01:24.4]} 27... Qc3 {[%clk 0:02:03.8]} 28. Qg4 {[%clk 0:01:15.1]} 28... Re1
{[%clk 0:01:29]} 29. Bxg6 {[%clk 0:01:07.8]} 29... fxg6 {[%clk 0:01:22.8]} 30.
Qxg6+ {[%clk 0:00:57.8]} 30... Kf8 {[%clk 0:01:18]} 31. Qh6+ {[%clk 0:00:56.5]}
31... Kf7 {[%clk 0:01:18.1]} 32. Qh7+ {[%clk 0:00:56.6]} 32... Kf8 {[%clk
0:01:18.2]} 33. Qh8+ {[%clk 0:00:54.9]} 33... Kf7 {[%clk 0:01:17.8]} 34. Qh7+
{[%clk 0:00:53.6]} 34... Kf8 {[%clk 0:01:18.2]} 35. Qh6+ {[%clk 0:00:53.6]}
35... Kf7 {[%clk 0:01:18.1]} 36. Qh5+ {[%clk 0:00:53.6]} 36... Kg7 {[%clk
0:01:16.2]} 37. Qg4+ {[%clk 0:00:52.7]} 37... Kf7 {[%clk 0:01:16.3]} 38. Qd7+
{[%clk 0:00:52.1]} 38... Kg6 {[%clk 0:01:15.2]} 39. Qg4+ {[%clk 0:00:31.1]}
39... Kf7 {[%clk 0:01:14.6]} 40. Qd7+ {[%clk 0:00:30.6]} 40... Kg6 {[%clk
0:01:09.7]} 41. Qg4+ {[%clk 0:00:29.6]} 41... Kf7 {[%clk 0:01:04.5]} 1/2-1/2

[Event "*** Titled Tuesday Blitz"]
[Site "Chess.com"]
[Date "2020.05.19"]
[Round "8"]
[White "Gentle_Emperor"]
[Black "jucAxx"]
[Result "0-1"]
[WhiteElo "2273"]
[BlackElo "2107"]
[TimeControl "180+1"]
[EndTime "13:35:39 PDT"]
[Termination "jucAxx won on time"]

1. d4 {[%clk 0:02:54.2]} 1... f5 {[%clk 0:02:57.9]} 2. Nf3 {[%clk 0:02:52.6]}
2... Nf6 {[%clk 0:02:57.4]} 3. g3 {[%clk 0:02:53.5]} 3... d6 {[%clk 0:02:57.6]}
4. Bg2 {[%clk 0:02:54.4]} 4... c6 {[%clk 0:02:58.1]} 5. c4 {[%clk 0:02:54.2]}
5... Qc7 {[%clk 0:02:58.5]} 6. O-O {[%clk 0:02:54]} 6... e5 {[%clk 0:02:58.9]}
7. dxe5 {[%clk 0:02:53]} 7... dxe5 {[%clk 0:02:59.8]} 8. b3 {[%clk 0:02:53.4]}
8... Be7 {[%clk 0:02:59.2]} 9. Bb2 {[%clk 0:02:53.5]} 9... e4 {[%clk 0:02:45.1]}
10. Nd4 {[%clk 0:02:46]} 10... O-O {[%clk 0:02:44.3]} 11. e3 {[%clk 0:02:45.8]}
11... Na6 {[%clk 0:02:41.7]} 12. Nd2 {[%clk 0:02:07.6]} 12... Bd7 {[%clk
0:02:36.7]} 13. a3 {[%clk 0:02:05.6]} 13... Rad8 {[%clk 0:02:36.2]} 14. b4
{[%clk 0:02:04.2]} 14... c5 {[%clk 0:02:33.9]} 15. Nb5 {[%clk 0:01:53.6]} 15...
Qb6 {[%clk 0:02:07.7]} 16. Qb3 {[%clk 0:01:52.5]} 16... Kh8 {[%clk 0:02:03.9]}
17. Bc3 {[%clk 0:01:38.8]} 17... Bxb5 {[%clk 0:01:55.6]} 18. cxb5 {[%clk
0:01:37.5]} 18... Qxb5 {[%clk 0:01:54.8]} 19. Rfd1 {[%clk 0:01:30.4]} 19... cxb4
{[%clk 0:01:46.1]} 20. axb4 {[%clk 0:01:24.4]} 20... Ng4 {[%clk 0:01:02]} 21.
Bf1 {[%clk 0:01:22.5]} 21... Qb6 {[%clk 0:00:44.2]} 22. Bd4 {[%clk 0:01:22.6]}
22... Qh6 {[%clk 0:00:40.6]} 0-1

[Event "*** Titled Tuesday Blitz"]
[Site "Chess.com"]
[Date "2020.05.19"]
[Round "8"]
[White "dolynachess"]
[Black "WiktoriaPOL"]
[Result "1-0"]
[WhiteElo "2356"]
[BlackElo "2004"]
[TimeControl "180+1"]
[EndTime "13:35:39 PDT"]
[Termination "dolynachess won by checkmate"]

1. d4 {[%clk 0:02:58.9]} 1... Nf6 {[%clk 0:02:59.4]} 2. c4 {[%clk 0:02:55.6]}
2... g6 {[%clk 0:02:59.2]} 3. g3 {[%clk 0:02:56]} 3... Bg7 {[%clk 0:02:58.7]} 4.
Bg2 {[%clk 0:02:54.9]} 4... O-O {[%clk 0:02:57.8]} 5. Nc3 {[%clk 0:02:55.2]}
5... d6 {[%clk 0:02:56.6]} 6. e3 {[%clk 0:02:55.4]} 6... e5 {[%clk 0:02:54.4]}
7. Nge2 {[%clk 0:02:55.9]} 7... Nc6 {[%clk 0:02:51.9]} 8. O-O {[%clk 0:02:55.9]}
8... Re8 {[%clk 0:02:44.9]} 9. a3 {[%clk 0:02:55.2]} 9... a5 {[%clk 0:02:43.5]}
10. b3 {[%clk 0:02:52.3]} 10... e4 {[%clk 0:02:17.4]} 11. h3 {[%clk 0:02:34.9]}
11... h5 {[%clk 0:02:12.5]} 12. Rb1 {[%clk 0:02:33.2]} 12... Bf5 {[%clk
0:02:07.2]} 13. b4 {[%clk 0:02:32.6]} 13... axb4 {[%clk 0:02:06.4]} 14. axb4
{[%clk 0:02:33.5]} 14... Qd7 {[%clk 0:01:52.5]} 15. Nf4 {[%clk 0:02:32.3]} 15...
g5 {[%clk 0:01:28.4]} 16. Nxh5 {[%clk 0:02:31.4]} 16... Bxh3 {[%clk 0:01:23.2]}
17. Nxf6+ {[%clk 0:02:30]} 17... Bxf6 {[%clk 0:01:18.2]} 18. Nd5 {[%clk
0:02:30.1]} 18... Bg7 {[%clk 0:01:06.9]} 19. Qh5 {[%clk 0:02:27.3]} 19... Bxg2
{[%clk 0:01:05]} 20. Kxg2 {[%clk 0:02:24.5]} 20... f6 {[%clk 0:01:04.9]} 21. Rh1
{[%clk 0:02:21.9]} 21... Ne7 {[%clk 0:00:45.8]} 22. Qh7+ {[%clk 0:02:04.6]}
22... Kf7 {[%clk 0:00:45.4]} 23. Qxe4 {[%clk 0:02:01.3]} 23... f5 {[%clk
0:00:34.3]} 24. Qf3 {[%clk 0:01:49.1]} 24... Nxd5 {[%clk 0:00:32.4]} 25. Qxd5+
{[%clk 0:01:47.2]} 25... Kf6 {[%clk 0:00:25.4]} 26. Qxb7 {[%clk 0:01:41]} 26...
Ra2 {[%clk 0:00:17.7]} 27. Bb2 {[%clk 0:01:34.9]} 27... Rea8 {[%clk 0:00:13.2]}
28. Qf3 {[%clk 0:01:25.9]} 28... g4 {[%clk 0:00:11.5]} 29. Qf4 {[%clk
0:01:21.5]} 29... Qa4 {[%clk 0:00:05.8]} 30. d5+ {[%clk 0:01:15.6]} 30... Kg6
{[%clk 0:00:04.1]} 31. Bxg7 {[%clk 0:01:12.7]} 31... Kxg7 {[%clk 0:00:03.8]} 32.
Qg5+ {[%clk 0:01:12.8]} 32... Kf7 {[%clk 0:00:02.7]} 33. Qxf5+ {[%clk
0:01:12.8]} 33... Ke7 {[%clk 0:00:03]} 34. Rh7+ {[%clk 0:01:12.2]} 34... Ke8
{[%clk 0:00:03.1]} 35. Qf7+ {[%clk 0:01:09.6]} 35... Kd8 {[%clk 0:00:02.4]} 36.
Rh8+ {[%clk 0:01:08.8]} 36... Qe8 {[%clk 0:00:01.3]} 37. Rxe8# {[%clk
0:01:09.1]} 1-0

[Event "*** Titled Tuesday Blitz"]
[Site "Chess.com"]
[Date "2020.05.19"]
[Round "8"]
[White "ChessBitl"]
[Black "Guenplen"]
[Result "0-1"]
[WhiteElo "2359"]
[BlackElo "2954"]
[TimeControl "180+1"]
[EndTime "13:35:40 PDT"]
[Termination "Guenplen won by resignation"]

1. e4 {[%clk 0:03:00.1]} 1... c5 {[%clk 0:03:00.1]} 2. Nf3 {[%clk 0:02:58.9]}
2... e6 {[%clk 0:03:00.4]} 3. c4 {[%clk 0:02:58.1]} 3... Nc6 {[%clk 0:03:00]} 4.
Nc3 {[%clk 0:02:58.3]} 4... Nge7 {[%clk 0:02:54.2]} 5. Be2 {[%clk 0:02:58]} 5...
Nd4 {[%clk 0:02:52]} 6. O-O {[%clk 0:02:55.5]} 6... Nec6 {[%clk 0:02:49.8]} 7.
Nb5 {[%clk 0:02:55.3]} 7... Nxf3+ {[%clk 0:02:46.1]} 8. Bxf3 {[%clk 0:02:54.8]}
8... a6 {[%clk 0:02:47]} 9. Nc3 {[%clk 0:02:54.2]} 9... g6 {[%clk 0:02:46]} 10.
d3 {[%clk 0:02:54.2]} 10... Bg7 {[%clk 0:02:46.4]} 11. g3 {[%clk 0:02:53.9]}
11... O-O {[%clk 0:02:45.7]} 12. Bg2 {[%clk 0:02:54.2]} 12... d6 {[%clk
0:02:42.7]} 13. Be3 {[%clk 0:02:53.9]} 13... Rb8 {[%clk 0:02:41.6]} 14. f4
{[%clk 0:02:52]} 14... Nd4 {[%clk 0:02:34.7]} 15. Qd2 {[%clk 0:02:47.8]} 15...
b5 {[%clk 0:02:34.1]} 16. Rab1 {[%clk 0:02:30.5]} 16... bxc4 {[%clk 0:02:31.7]}
17. dxc4 {[%clk 0:02:30.4]} 17... f5 {[%clk 0:02:28.3]} 18. b3 {[%clk
0:02:29.6]} 18... Qa5 {[%clk 0:02:21.6]} 19. Rbc1 {[%clk 0:02:23.7]} 19... Bb7
{[%clk 0:02:20.3]} 20. exf5 {[%clk 0:02:15.7]} 20... gxf5 {[%clk 0:02:16.7]} 21.
Rfd1 {[%clk 0:02:08.7]} 21... Rfd8 {[%clk 0:02:06.6]} 22. Ne2 {[%clk 0:02:05]}
22... Qxd2 {[%clk 0:02:01.2]} 23. Rxd2 {[%clk 0:02:05.3]} 23... e5 {[%clk
0:01:32.9]} 24. Nc3 {[%clk 0:02:03.1]} 24... e4 {[%clk 0:01:27.6]} 25. g4 {[%clk
0:01:56.6]} 25... Kf7 {[%clk 0:01:14.9]} 26. Nd5 {[%clk 0:01:46.1]} 26... Bxd5
{[%clk 0:01:13.3]} 27. cxd5 {[%clk 0:01:46.1]} 27... fxg4 {[%clk 0:01:06]} 28.
Kf2 {[%clk 0:01:22.1]} 28... Re8 {[%clk 0:01:03.6]} 29. h3 {[%clk 0:01:14.2]}
29... h5 {[%clk 0:01:03.3]} 30. hxg4 {[%clk 0:01:14]} 30... hxg4 {[%clk
0:01:04.2]} 31. Rh1 {[%clk 0:01:14.4]} 31... Nf5 {[%clk 0:01:02.6]} 32. Rdd1
{[%clk 0:01:10]} 32... Bd4 {[%clk 0:00:56]} 33. Bxd4 {[%clk 0:01:06.5]} 33...
cxd4 {[%clk 0:00:56.9]} 34. Rh5 {[%clk 0:01:00.3]} 34... e3+ {[%clk 0:00:52.7]}
35. Ke1 {[%clk 0:00:54.7]} 35... Kf6 {[%clk 0:00:49.6]} 36. Rxf5+ {[%clk
0:00:49.5]} 36... Kxf5 {[%clk 0:00:49]} 37. Rxd4 {[%clk 0:00:50.2]} 37... Rbc8
{[%clk 0:00:47.4]} 38. Rc4 {[%clk 0:00:47.4]} 38... Rxc4 {[%clk 0:00:45.8]} 39.
bxc4 {[%clk 0:00:48]} 39... Kxf4 {[%clk 0:00:46.4]} 40. Ke2 {[%clk 0:00:48.2]}
40... Rc8 {[%clk 0:00:43.4]} 41. Kd3 {[%clk 0:00:45.7]} 41... Rxc4 {[%clk
0:00:42.2]} 0-1

[Event "*** Titled Tuesday Blitz"]
[Site "Chess.com"]
[Date "2020.05.19"]
[Round "8"]
[White "VaKukl"]
[Black "WildTricks"]
[Result "1-0"]
[WhiteElo "2395"]
[BlackElo "2533"]
[TimeControl "180+1"]
[EndTime "13:35:40 PDT"]
[Termination "VaKukl won by resignation"]

1. e4 {[%clk 0:03:00.9]} 1... e5 {[%clk 0:02:59.4]} 2. Nf3 {[%clk 0:02:59.9]}
2... Nc6 {[%clk 0:02:59.1]} 3. Bb5 {[%clk 0:02:58.9]} 3... g6 {[%clk 0:02:58.6]}
4. d4 {[%clk 0:02:57.7]} 4... exd4 {[%clk 0:02:58.1]} 5. Bg5 {[%clk 0:02:48.9]}
5... Be7 {[%clk 0:02:57.5]} 6. Bxe7 {[%clk 0:02:47.9]} 6... Qxe7 {[%clk
0:02:58.4]} 7. Bxc6 {[%clk 0:02:47.2]} 7... dxc6 {[%clk 0:02:57.8]} 8. Qxd4
{[%clk 0:02:47.2]} 8... Nf6 {[%clk 0:02:57.4]} 9. O-O {[%clk 0:02:45.8]} 9... c5
{[%clk 0:02:56.9]} 10. Qc3 {[%clk 0:02:41.2]} 10... O-O {[%clk 0:02:48.2]} 11.
Re1 {[%clk 0:02:31.7]} 11... Nxe4 {[%clk 0:02:29.4]} 12. Qc4 {[%clk 0:02:31.4]}
12... Bf5 {[%clk 0:02:29.5]} 13. Nc3 {[%clk 0:02:27.8]} 13... Nd6 {[%clk
0:01:36]} 14. Qxc5 {[%clk 0:02:08]} 14... Qd8 {[%clk 0:01:35.5]} 15. Nd4 {[%clk
0:02:02.4]} 15... Bd7 {[%clk 0:01:32.1]} 16. Rad1 {[%clk 0:02:00.2]} 16... b6
{[%clk 0:01:21.4]} 17. Qd5 {[%clk 0:01:54.8]} 17... Qf6 {[%clk 0:01:14.1]} 18.
Nc6 {[%clk 0:01:38.8]} 18... Rae8 {[%clk 0:00:44.9]} 19. Nxa7 {[%clk 0:01:25.2]}
19... Be6 {[%clk 0:00:31.3]} 20. Qe5 {[%clk 0:01:08.9]} 20... Qh4 {[%clk
0:00:22.4]} 21. Nc6 {[%clk 0:01:00.3]} 21... f6 {[%clk 0:00:17.8]} 22. Qg3
{[%clk 0:00:57.3]} 22... Qxg3 {[%clk 0:00:17.1]} 23. hxg3 {[%clk 0:00:56.9]}
23... Bd7 {[%clk 0:00:17.7]} 24. Ne7+ {[%clk 0:00:50.4]} 24... Kf7 {[%clk
0:00:17.2]} 25. Ned5 {[%clk 0:00:50.6]} 25... Rc8 {[%clk 0:00:16.5]} 26. Re7+
{[%clk 0:00:49.5]} 26... Kg8 {[%clk 0:00:13]} 27. Rxd7 {[%clk 0:00:49.5]} 27...
Nf5 {[%clk 0:00:13.7]} 28. g4 {[%clk 0:00:47.9]} 28... Nh6 {[%clk 0:00:13.1]}
29. Ne7+ {[%clk 0:00:47.3]} 29... Kh8 {[%clk 0:00:12.5]} 30. Nxc8 {[%clk
0:00:47.4]} 30... Rxc8 {[%clk 0:00:13.4]} 1-0

[Event "*** Titled Tuesday Blitz"]
[Site "Chess.com"]
[Date "2020.05.19"]
[Round "8"]
[White "marszach123"]
[Black "Ceejay271"]
[Result "0-1"]
[WhiteElo "2202"]
[BlackElo "2395"]
[TimeControl "180+1"]
[EndTime "13:35:40 PDT"]
[Termination "Ceejay271 won on time"]

1. e4 {[%clk 0:02:59.6]} 1... c5 {[%clk 0:02:58]} 2. Nf3 {[%clk 0:02:59.9]} 2...
Nc6 {[%clk 0:02:57.1]} 3. d4 {[%clk 0:03:00.4]} 3... cxd4 {[%clk 0:02:57.6]} 4.
Nxd4 {[%clk 0:03:00.9]} 4... g6 {[%clk 0:02:58.2]} 5. c4 {[%clk 0:02:59.6]} 5...
Nf6 {[%clk 0:02:55.9]} 6. f3 {[%clk 0:02:56.4]} 6... Bg7 {[%clk 0:02:48.6]} 7.
Be3 {[%clk 0:02:52.2]} 7... O-O {[%clk 0:02:47.4]} 8. Nc3 {[%clk 0:02:51]} 8...
d6 {[%clk 0:02:47]} 9. Be2 {[%clk 0:02:47.6]} 9... Bd7 {[%clk 0:02:46.7]} 10.
O-O {[%clk 0:02:46.3]} 10... Nxd4 {[%clk 0:02:45.8]} 11. Bxd4 {[%clk 0:02:46]}
11... a5 {[%clk 0:02:46.7]} 12. Qd2 {[%clk 0:02:41.6]} 12... Bc6 {[%clk
0:02:46.1]} 13. Rfd1 {[%clk 0:02:25.6]} 13... Nd7 {[%clk 0:02:45.1]} 14. Be3
{[%clk 0:02:22.4]} 14... Nc5 {[%clk 0:02:34.3]} 15. b3 {[%clk 0:01:38.1]} 15...
Be5 {[%clk 0:02:27.6]} 16. f4 {[%clk 0:01:33.1]} 16... Bxc3 {[%clk 0:02:25.6]}
17. Qxc3 {[%clk 0:01:32.3]} 17... Nxe4 {[%clk 0:02:26.2]} 18. Qb2 {[%clk
0:01:28.8]} 18... e6 {[%clk 0:02:16.7]} 19. Bf3 {[%clk 0:01:06.6]} 19... f5
{[%clk 0:02:07.4]} 20. Bxe4 {[%clk 0:01:01.3]} 20... Bxe4 {[%clk 0:02:05.1]} 21.
Bd4 {[%clk 0:00:54.1]} 21... Qc7 {[%clk 0:02:01.8]} 22. Qf2 {[%clk 0:00:47.5]}
22... Ra6 {[%clk 0:01:54.6]} 23. Qh4 {[%clk 0:00:46.2]} 23... e5 {[%clk
0:01:51.5]} 24. Be3 {[%clk 0:00:38.3]} 24... Re8 {[%clk 0:01:31.3]} 25. Qf6
{[%clk 0:00:29]} 25... Qe7 {[%clk 0:01:30.4]} 26. Qxe7 {[%clk 0:00:15]} 26...
Rxe7 {[%clk 0:01:31.3]} 27. c5 {[%clk 0:00:11.4]} 27... exf4 {[%clk 0:01:29.3]}
28. cxd6 {[%clk 0:00:11.4]} 28... fxe3 {[%clk 0:01:24.4]} 29. dxe7 {[%clk
0:00:10.7]} 29... Kf7 {[%clk 0:01:18.5]} 30. Rd7 {[%clk 0:00:10.5]} 30... Re6
{[%clk 0:01:15.7]} 31. Re1 {[%clk 0:00:06.4]} 31... f4 {[%clk 0:01:15.2]} 32. g3
{[%clk 0:00:05.8]} 32... g5 {[%clk 0:01:14]} 33. h4 {[%clk 0:00:05]} 33... h6
{[%clk 0:01:13.9]} 34. hxg5 {[%clk 0:00:04.7]} 34... hxg5 {[%clk 0:01:13.4]} 35.
gxf4 {[%clk 0:00:04.3]} 35... gxf4 {[%clk 0:01:14.1]} 36. Rf1 {[%clk 0:00:03.1]}
36... f3 {[%clk 0:01:13.4]} 0-1

[Event "*** Titled Tuesday Blitz"]
[Site "Chess.com"]
[Date "2020.05.19"]
[Round "8"]
[White "pfalcon1949"]
[Black "OsorioFernando"]
[Result "0-1"]
[WhiteElo "1963"]
[BlackElo "2246"]
[TimeControl "180+1"]
[EndTime "13:35:40 PDT"]
[Termination "OsorioFernando won on time"]

1. d4 {[%clk 0:03:00.9]} 1... f5 {[%clk 0:02:59.3]} 2. Nf3 {[%clk 0:02:59.8]}
2... Nf6 {[%clk 0:02:58.7]} 3. g3 {[%clk 0:03:00.1]} 3... e6 {[%clk 0:02:58.7]}
4. Bg2 {[%clk 0:03:00.3]} 4... d5 {[%clk 0:02:59.6]} 5. O-O {[%clk 0:03:00.2]}
5... c6 {[%clk 0:02:59.9]} 6. c4 {[%clk 0:02:53.8]} 6... Bd6 {[%clk 0:02:59.2]}
7. Qb3 {[%clk 0:02:50]} 7... O-O {[%clk 0:02:57.5]} 8. Nc3 {[%clk 0:02:36.8]}
8... Kh8 {[%clk 0:02:56.6]} 9. Bf4 {[%clk 0:02:33]} 9... Bxf4 {[%clk 0:02:54]}
10. gxf4 {[%clk 0:02:32.9]} 10... b6 {[%clk 0:02:48.5]} 11. Ne5 {[%clk
0:02:32.4]} 11... Bb7 {[%clk 0:02:48.4]} 12. Rac1 {[%clk 0:02:29.5]} 12... Nbd7
{[%clk 0:02:40.4]} 13. cxd5 {[%clk 0:02:28.9]} 13... exd5 {[%clk 0:02:35.8]} 14.
e3 {[%clk 0:02:17.4]} 14... Nxe5 {[%clk 0:02:33]} 15. dxe5 {[%clk 0:02:13.3]}
15... Ne4 {[%clk 0:02:27.3]} 16. Nxe4 {[%clk 0:02:09.5]} 16... fxe4 {[%clk
0:02:13.7]} 17. Rfd1 {[%clk 0:02:08.6]} 17... Qe7 {[%clk 0:02:06.1]} 18. Kh1
{[%clk 0:02:06.4]} 18... g5 {[%clk 0:02:01.2]} 19. Qc3 {[%clk 0:01:25.3]} 19...
gxf4 {[%clk 0:01:52.7]} 20. exf4 {[%clk 0:01:20.4]} 20... Rxf4 {[%clk
0:01:49.7]} 21. e6+ {[%clk 0:01:20]} 21... Qf6 {[%clk 0:01:45.7]} 22. Bh3 {[%clk
0:01:04.7]} 22... Re8 {[%clk 0:01:38.3]} 23. Qg3 {[%clk 0:00:52.8]} 23... c5
{[%clk 0:01:31.8]} 24. Rf1 {[%clk 0:00:22.8]} 24... d4 {[%clk 0:01:27.4]} 25.
Bg2 {[%clk 0:00:12.3]} 25... Rxe6 {[%clk 0:01:19.2]} 26. Qh3 {[%clk 0:00:09.3]}
26... Re8 {[%clk 0:01:10.1]} 27. Qh5 {[%clk 0:00:08.4]} 27... Rg8 {[%clk
0:01:06.5]} 28. Bh3 {[%clk 0:00:05.9]} 28... e3+ {[%clk 0:01:04.3]} 29. f3
{[%clk 0:00:04.4]} 29... Rxf3 {[%clk 0:01:00.9]} 0-1